fUSD/lending_fUSD_20250108
["ID","MTS","AMOUNT","RATE_DAILY","PERIOD"]
[348180137,1736369439128,-500.0,9.699e-05,2]
[348180139,1736369439138,-340.16,9.699e-05,2]
[348180142,1736369439148,-500.0,9.699e-05,2]
[348180144,1736369439161,-500.0,9.699e-05,2]
[348180145,1736369439172,-500.0,9.699e-05,2]
[348180147,1736369439182,-510.27,9.699e-05,2]
[348180149,1736369439191,-593.33,9.699e-05,2]
[348180151,1736369439202,-2207.75,9.699e-05,2]
[348180153,1736369439211,-500.0,9.699e-05,2]
[348180155,1736369439220,-500.0,9.699e-05,2]
[348180157,1736369439229,-1999.55,9.699e-05,2]
[348180159,1736369439239,-561.76,9.699e-05,2]
[348180161,1736369439248,-500.0,9.699e-05,2]
[348180163,1736369439257,-564.54,9.699e-05,2]
[348180165,1736369439267,-668.93,9.699e-05,2]
[348180167,1736369439276,-500.0,9.699e-05,2]
[348180169,1736369439285,-500.0,9.699e-05,2]
[348180171,1736369439295,-500.0,9.699e-05,2]
[348180173,1736369439304,-500.0,9.699e-05,2]
[348180175,1736369439313,-500.0,9.699e-05,2]
[348180177,1736369439322,-2164.18,9.699e-05,2]
[348180179,1736369439331,-542.64,9.699e-05,2]
[348180181,1736369439341,-500.0,9.699e-05,2]
[348180183,1736369439350,-500.0,9.699e-05,2]
[348180185,1736369439359,-2814.08,9.699e-05,2]
[348180187,1736369439368,-500.0,9.699e-05,2]
[348180189,1736369439377,-500.0,9.699e-05,2]
[348180191,1736369439386,-1203.26,9.699e-05,2]
[348180193,1736369439395,-500.0,9.699e-05,2]
[348180195,1736369439407,-500.0,9.699e-05,2]
[348180197,1736369439416,-500.0,9.699e-05,2]
[348180199,1736369439425,-500.0,9.699e-05,2]
[348180201,1736369439435,-500.0,9.699e-05,2]
[348180202,1736369439444,-500.0,9.699e-05,2]
[348180204,1736369439454,-500.0,9.699e-05,2]
[348180206,1736369439463,-500.0,9.699e-05,2]
[348180208,1736369439472,-2405.48,9.699e-05,2]
[348180210,1736369439482,-664.48,9.699e-05,2]
[348180212,1736369439491,-662.27,9.699e-05,2]
[348180214,1736369439500,-500.0,9.699e-05,2]
[348180216,1736369439510,-500.0,9.699e-05,2]
[348180218,1736369439518,-500.0,9.699e-05,2]
[348180220,1736369439528,-500.0,9.699e-05,2]
[348180222,1736369439537,-500.0,9.699e-05,2]
[348180224,1736369439547,-208.09726324,9.699e-05,2]
[348180226,1736369439556,-500.0,9.699e-05,2]
[348180228,1736369439565,-500.0,9.699e-05,2]
[348180230,1736369439574,-500.0,9.699e-05,2]
[348180232,1736369439583,-500.0,9.699e-05,2]
[348180234,1736369439592,-343.57080778,9.699e-05,2]
[348180236,1736369439601,-505.11263049,9.699e-05,2]
[348180238,1736369439610,-500.0,9.699e-05,2]
[348180240,1736369439619,-1062.86,9.699e-05,2]
[348180242,1736369439628,-1239.93,9.699e-05,2]
[348180244,1736369439638,-500.0,9.699e-05,2]
[348180246,1736369439647,-500.0,9.699e-05,2]
[348180248,1736369439658,-500.0,9.699e-05,2]
[348180250,1736369439667,-500.0,9.699e-05,2]
[348180252,1736369439676,-500.0,9.699e-05,2]
[348180254,1736369439685,-1225.72,9.699e-05,2]
[348180256,1736369439694,-500.0,9.699e-05,2]
[348180258,1736369439703,-500.0,9.699e-05,2]
[348180260,1736369439712,-803.05,9.699e-05,2]
[348180262,1736369439721,-500.0,9.699e-05,2]
[348180263,1736369439732,-500.0,9.699e-05,2]
[348180265,1736369439741,-500.0,9.699e-05,2]
[348180267,1736369439750,-780.02,9.699e-05,2]
[348180269,1736369439759,-500.0,9.699e-05,2]
[348180271,1736369439768,-500.0,9.699e-05,2]
[348180273,1736369439777,-500.0,9.699e-05,2]
[348180275,1736369439786,-500.0,9.699e-05,2]
[348180277,1736369439797,-500.0,9.699e-05,2]
[348180279,1736369439806,-504.04004126,9.699e-05,2]
[348180281,1736369439815,-500.0,9.699e-05,2]
[348180282,1736369439824,-1654.27,9.699e-05,2]
[348180283,1736369439833,-500.0,9.699e-05,2]
[348180284,1736369439842,-587.9461012,9.699e-05,2]
[348180285,1736369439851,-500.0,9.699e-05,2]
[348180286,1736369439860,-924.94,9.699e-05,2]
[348180287,1736369439870,-500.0,9.699e-05,2]
[348180288,1736369439879,-500.0,9.699e-05,2]
[348180289,1736369439888,-500.0,9.699e-05,2]
[348180290,1736369439897,-500.0,9.699e-05,2]
[348180291,1736369439908,-500.0,9.699e-05,2]
[348180292,1736369439917,-500.0,9.699e-05,2]
[348180293,1736369439927,-500.0,9.699e-05,2]
[348180294,1736369439936,-500.0,9.699e-05,2]
[348180295,1736369439945,-678.49,9.699e-05,2]
[348180296,1736369439955,-500.0,9.699e-05,2]
[348180297,1736369439964,-500.0,9.699e-05,2]
[348180298,1736369439973,-500.0,9.699e-05,2]
[348180299,1736369439983,-500.0,9.699e-05,2]
[348180300,1736369439992,-500.0,9.699e-05,2]
[348180301,1736369440001,-502.80202421,9.699e-05,2]
[348180302,1736369440011,-330.44,9.699e-05,2]
[348180303,1736369440020,-191.68839425,9.699e-05,2]
[348180304,1736369440029,-500.0,9.699e-05,2]
[348180305,1736369440039,-500.0,9.699e-05,2]
[348180306,1736369440047,-396.54358092,9.699e-05,2]
[348180307,1736369440057,-500.0,9.699e-05,2]
[348180308,1736369440066,-977.89,9.699e-05,2]
[348180309,1736369440075,-976.5,9.699e-05,2]
[348180310,1736369440084,-500.0,9.699e-05,2]
[348180311,1736369440093,-233.84,9.699e-05,2]
[348180312,1736369440102,-500.0,9.699e-05,2]
[348180313,1736369440111,-500.0,9.699e-05,2]
[348180314,1736369440121,-500.0,9.699e-05,2]
[348180315,1736369440130,-500.0,9.699e-05,2]
[348180316,1736369440140,-500.0,9.699e-05,2]
[348180317,1736369440149,-500.0,9.699e-05,2]
[348180318,1736369440161,-824.16,9.699e-05,2]
[348180319,1736369440171,-223.88,9.699e-05,2]
[348180320,1736369440180,-500.0,9.699e-05,2]
[348180321,1736369440190,-500.0,9.699e-05,2]
[348180322,1736369440200,-1040.36,9.699e-05,2]
[348180323,1736369440210,-500.0,9.699e-05,2]
[348180324,1736369440219,-500.0,9.699e-05,2]
[348180325,1736369440230,-500.0,9.699e-05,2]
[348180327,1736369440240,-500.0,9.699e-05,2]
[348180328,1736369440249,-500.0,9.699e-05,2]
[348180330,1736369440258,-335.02,9.699e-05,2]
[348180332,1736369440268,-2363.0,9.699e-05,2]
[348180334,1736369440277,-615.22883885,9.699e-05,2]
[348180335,1736369440288,-500.0,9.699e-05,2]
[348180336,1736369440296,-500.0,9.699e-05,2]
[348180337,1736369440306,-580.04,9.699e-05,2]
[348180338,1736369440315,-539.16,9.699e-05,2]
[348180339,1736369440324,-534.77,9.699e-05,2]
[348180340,1736369440334,-500.0,9.699e-05,2]
[348180341,1736369440343,-311.25607775,9.699e-05,2]
[348180342,1736369440352,-839.22,9.699e-05,2]
[348180343,1736369440362,-500.0,9.699e-05,2]
[348180344,1736369440372,-1013.11,9.699e-05,2]
[348180345,1736369440381,-184262.2608,9.7e-05,2]
[348180346,1736369440391,-600.86,9.766e-05,2]
[348180347,1736369440400,-1796.61,9.766e-05,2]
[348180348,1736369440409,-977.43,9.766e-05,2]
[348180349,1736369440419,-3154.19,9.766e-05,2]
[348180350,1736369440429,-692.91,9.767e-05,2]
[348180351,1736369440438,-500.0,9.767e-05,2]
[348180352,1736369440448,-1000.0,9.767e-05,2]
[348180353,1736369440458,-510.19,9.767e-05,2]
[348180354,1736369440467,-500.0,9.767e-05,2]
[348180355,1736369440477,-1551.75,9.767e-05,2]
[348180356,1736369440487,-1035.07,9.767e-05,2]
[348180357,1736369440496,-1000.0,9.799e-05,2]
[348180358,1736369440505,-5000.0,9.8e-05,2]
[348180359,1736369440515,-14515.015,9.897e-05,2]
[348180360,1736369440526,-900.0,9.9e-05,3]
[348180361,1736369440536,-500.0,9.964e-05,2]
[348180362,1736369440544,-500.0,9.964e-05,2]
[348180363,1736369440556,-2140.9,9.964e-05,2]
[348180364,1736369440565,-500.0,9.964e-05,2]
[348180365,1736369440575,-787.91,9.964e-05,2]
[348180366,1736369440584,-770.83,9.964e-05,2]
[348180367,1736369440594,-500.0,9.973e-05,2]
[348180368,1736369440603,-500.0,9.973e-05,2]
[348180369,1736369440612,-500.0,9.973e-05,2]
[348180370,1736369440622,-585.41,9.973e-05,2]
[348180371,1736369440631,-298.94464702,9.973e-05,2]
[348180372,1736369440640,-500.0,9.973e-05,2]
[348180373,1736369440650,-500.0,9.973e-05,2]
[348180374,1736369440660,-500.0,9.973e-05,2]
[348180375,1736369440670,-500.0,9.973e-05,2]
[348180376,1736369440680,-500.0,9.973e-05,2]
[348180377,1736369440690,-500.0,9.973e-05,2]
[348180378,1736369440699,-500.0,9.973e-05,2]
[348180379,1736369440708,-500.0,9.973e-05,2]
[348180380,1736369440718,-500.0,9.973e-05,2]
[348180381,1736369440727,-500.0,9.973e-05,2]
[348180382,1736369440737,-500.0,9.973e-05,2]
[348180383,1736369440747,-500.0,9.973e-05,2]
[348180384,1736369440756,-1090.83,9.973e-05,2]
[348180385,1736369440765,-500.0,9.973e-05,2]
[348180386,1736369440775,-500.0,9.973e-05,2]
[348180387,1736369440785,-573.73,9.973e-05,2]
[348180388,1736369440794,-500.0,9.973e-05,2]
[348180389,1736369440804,-500.0,9.973e-05,2]
[348180390,1736369440814,-762.3,9.973e-05,2]
[348180391,1736369440823,-500.0,9.973e-05,2]
[348180392,1736369440833,-500.0,9.973e-05,2]
[348180393,1736369440842,-636.51,9.973e-05,2]
[348180394,1736369440852,-500.0,9.973e-05,2]
[348180395,1736369440861,-500.0,9.973e-05,2]
[348180396,1736369440871,-500.0,9.973e-05,2]
[348180397,1736369440880,-500.0,9.973e-05,2]
[348180398,1736369440890,-666.66,9.973e-05,2]
[348180399,1736369440899,-500.0,9.973e-05,2]
[348180400,1736369440910,-500.0,9.973e-05,2]
[348180401,1736369440919,-500.0,9.973e-05,2]
[348180402,1736369440928,-629.24,9.973e-05,2]
[348180403,1736369440937,-500.0,9.973e-05,2]
[348180404,1736369440947,-501.66,9.973e-05,2]
[348180405,1736369440956,-538.62,9.973e-05,2]
[348180406,1736369440964,-500.0,9.973e-05,2]
[348180407,1736369440973,-523.259551,9.973e-05,2]
[348180408,1736369440984,-500.0,9.973e-05,2]
[348180409,1736369440994,-436.87826717,9.973e-05,2]
[348180410,1736369441003,-500.0,9.973e-05,2]
[348180411,1736369441013,-500.0,9.973e-05,2]
[348180412,1736369441023,-520.13,9.973e-05,2]
[348180413,1736369441032,-500.0,9.973e-05,2]
[348180414,1736369441042,-500.0,9.973e-05,2]
[348180415,1736369441051,-500.0,9.973e-05,2]
[348180416,1736369441061,-532.122936,9.973e-05,2]
[348180417,1736369441070,-500.0,9.973e-05,2]
[348180418,1736369441079,-2281.0,9.973e-05,2]
[348180419,1736369441089,-500.0,9.973e-05,2]
[348180420,1736369441098,-500.0,9.973e-05,2]
[348180421,1736369441107,-612.78,9.973e-05,2]
[348180422,1736369441116,-500.0,9.973e-05,2]
[348180423,1736369441125,-500.0,9.973e-05,2]
[348180424,1736369441134,-500.0,9.973e-05,2]
[348180425,1736369441144,-500.0,9.973e-05,2]
[348180426,1736369441156,-500.0,9.973e-05,2]
[348180427,1736369441168,-500.0,9.973e-05,2]
[348180428,1736369441177,-500.0,9.973e-05,2]
[348180429,1736369441187,-500.0,9.973e-05,2]
[348180430,1736369441197,-500.0,9.973e-05,2]
[348180431,1736369441206,-500.0,9.973e-05,2]
[348180432,1736369441215,-500.0,9.973e-05,2]
[348180433,1736369441225,-500.0,9.973e-05,2]
[348180434,1736369441234,-500.0,9.973e-05,2]
[348180435,1736369441246,-500.0,9.973e-05,2]
[348180436,1736369441256,-500.0,9.973e-05,2]
[348180437,1736369441265,-500.0,9.973e-05,2]
[348180438,1736369441274,-500.0,9.973e-05,2]
[348180439,1736369441283,-500.0,9.973e-05,2]
[348180440,1736369441291,-500.0,9.973e-05,2]
[348180441,1736369441300,-500.0,9.973e-05,2]
[348180442,1736369441310,-500.0,9.973e-05,2]
[348180443,1736369441319,-1678.3,9.973e-05,2]
[348180444,1736369441328,-500.0,9.973e-05,2]
[348180445,1736369441337,-500.0,9.973e-05,2]
[348180446,1736369441346,-500.0,9.973e-05,2]
[348180447,1736369441355,-500.0,9.973e-05,2]
[348180448,1736369441364,-500.0,9.973e-05,2]
[348180449,1736369441373,-500.0,9.973e-05,2]
[348180450,1736369441383,-500.0,9.973e-05,2]
[348180451,1736369441392,-500.0,9.973e-05,2]
[348180452,1736369441402,-500.0,9.973e-05,2]
[348180453,1736369441412,-500.0,9.973e-05,2]
[348180454,1736369441421,-238.21568217,9.973e-05,2]
[348180455,1736369441431,-500.0,9.973e-05,2]
[348180456,1736369441440,-500.0,9.973e-05,2]
[348180457,1736369441449,-500.0,9.973e-05,2]
[348180458,1736369441458,-500.0,9.973e-05,2]
[348180459,1736369441469,-510.27,9.973e-05,2]
[348180460,1736369441478,-2207.75,9.973e-05,2]
[348180461,1736369441487,-1999.55,9.973e-05,2]
[348180462,1736369441500,-561.76,9.973e-05,2]
[348180463,1736369441510,-500.0,9.973e-05,2]
[348180464,1736369441519,-564.54,9.973e-05,2]
[348180465,1736369441529,-668.93,9.973e-05,2]
[348180466,1736369441538,-500.0,9.973e-05,2]
[348180467,1736369441547,-500.0,9.973e-05,2]
[348180468,1736369441557,-500.0,9.973e-05,2]
[348180469,1736369441566,-500.0,9.973e-05,2]
[348180470,1736369441576,-500.0,9.973e-05,2]
[348180471,1736369441585,-2164.18,9.973e-05,2]
[348180472,1736369441594,-542.64,9.973e-05,2]
[348180473,1736369441604,-500.0,9.973e-05,2]
[348180474,1736369441614,-500.0,9.973e-05,2]
[348180475,1736369441624,-2814.08,9.973e-05,2]
[348180476,1736369441634,-500.0,9.973e-05,2]
[348180477,1736369441644,-500.0,9.973e-05,2]
[348180478,1736369441653,-1203.26,9.973e-05,2]
[348180479,1736369441664,-500.0,9.973e-05,2]
[348180480,1736369441673,-500.0,9.973e-05,2]
[348180481,1736369441683,-500.0,9.973e-05,2]
[348180482,1736369441692,-549.84,9.973e-05,2]
[348180483,1736369441702,-500.0,9.973e-05,2]
[348180484,1736369441711,-500.0,9.973e-05,2]
[348180485,1736369441721,-500.0,9.973e-05,2]
[348180486,1736369441730,-500.0,9.973e-05,2]
[348180487,1736369441740,-2405.48,9.973e-05,2]
[348180488,1736369441749,-664.48,9.973e-05,2]
[348180489,1736369441759,-662.27,9.973e-05,2]
[348180490,1736369441768,-504.42082281,9.973e-05,2]
[348180491,1736369441778,-500.0,9.973e-05,2]
[348180492,1736369441787,-500.0,9.973e-05,2]
[348180493,1736369441797,-500.0,9.973e-05,2]
[348180494,1736369441807,-386.13465827,9.973e-05,2]
[348180495,1736369441816,-500.0,9.973e-05,2]
[348180496,1736369441826,-500.0,9.973e-05,2]
[348180497,1736369441836,-500.0,9.973e-05,2]
[348180498,1736369441846,-500.0,9.973e-05,2]
[348180499,1736369441856,-500.0,9.973e-05,2]
[348180500,1736369441865,-1062.86,9.973e-05,2]
[348180501,1736369441874,-1239.93,9.973e-05,2]
[348180502,1736369441884,-500.0,9.973e-05,2]
[348180503,1736369441893,-500.0,9.973e-05,2]
[348180504,1736369441903,-500.0,9.973e-05,2]
[348180505,1736369441915,-500.0,9.973e-05,2]
[348180506,1736369441928,-1225.72,9.973e-05,2]
[348180507,1736369441937,-500.0,9.973e-05,2]
[348180508,1736369441946,-803.05,9.973e-05,2]
[348180509,1736369441956,-448.70156171,9.973e-05,2]
[348180510,1736369441966,-500.0,9.973e-05,2]
[348180511,1736369441976,-500.0,9.973e-05,2]
[348180512,1736369441985,-780.02,9.973e-05,2]
[348180513,1736369441994,-500.0,9.973e-05,2]
[348180514,1736369442004,-500.0,9.973e-05,2]
[348180515,1736369442014,-500.0,9.973e-05,2]
[348180516,1736369442023,-500.0,9.973e-05,2]
[348180517,1736369442032,-500.0,9.973e-05,2]
[348180518,1736369442042,-1654.27,9.973e-05,2]
[348180519,1736369442052,-500.0,9.973e-05,2]
[348180520,1736369442061,-500.0,9.973e-05,2]
[348180521,1736369442071,-924.94,9.973e-05,2]
[348180522,1736369442081,-500.0,9.973e-05,2]
[348180523,1736369442091,-500.0,9.973e-05,2]
[348180524,1736369442100,-500.0,9.973e-05,2]
[348180525,1736369442110,-500.0,9.973e-05,2]
[348180526,1736369442120,-678.49,9.973e-05,2]
[348180527,1736369442129,-500.0,9.973e-05,2]
[348180528,1736369442139,-500.0,9.973e-05,2]
[348180529,1736369442149,-500.0,9.973e-05,2]
[348180530,1736369442161,-500.0,9.973e-05,2]
[348180531,1736369442177,-500.0,9.973e-05,2]
[348180532,1736369442187,-500.0,9.973e-05,2]
[348180533,1736369442198,-977.89,9.973e-05,2]
[348180534,1736369442208,-976.5,9.973e-05,2]
[348180535,1736369442218,-552.4,9.973e-05,2]
[348180536,1736369442229,-500.0,9.973e-05,2]
[348180537,1736369442239,-500.0,9.973e-05,2]
[348180538,1736369442248,-500.0,9.973e-05,2]
[348180539,1736369442448,-824.16,9.973e-05,2]
[348180540,1736369442458,-500.0,9.973e-05,2]
[348180541,1736369442468,-500.0,9.973e-05,2]
[348180542,1736369442478,-207.84017639,9.973e-05,2]
[348180543,1736369442487,-1040.36,9.973e-05,2]
[348180544,1736369442498,-500.0,9.973e-05,2]
[348180545,1736369442508,-500.0,9.973e-05,2]
[348180546,1736369442517,-500.0,9.973e-05,2]
[348180547,1736369442527,-2363.0,9.973e-05,2]
[348180548,1736369442537,-500.0,9.973e-05,2]
[348180549,1736369442547,-500.0,9.973e-05,2]
[348180550,1736369442557,-580.04,9.973e-05,2]
[348180552,1736369442566,-500.0,9.973e-05,2]
[348180553,1736369442576,-839.22,9.973e-05,2]
[348180554,1736369442587,-1013.11,9.973e-05,2]
[348180555,1736369442598,-502.81,9.996e-05,2]
[348180556,1736369442607,-500.0,9.996e-05,2]
[348180557,1736369442617,-500.0,9.996e-05,2]
[348180558,1736369442627,-500.0,9.996e-05,2]
[348180559,1736369442637,-500.0,9.996e-05,2]
[348180560,1736369442646,-500.0,9.996e-05,2]
[348180561,1736369442656,-500.0,9.996e-05,2]
[348180562,1736369442665,-500.0,9.996e-05,2]
[348180563,1736369442675,-500.0,9.996e-05,2]
[348180564,1736369442685,-500.0,9.996e-05,2]
[348180565,1736369442695,-500.0,9.996e-05,2]
[348180566,1736369442705,-500.0,9.996e-05,2]
[348180567,1736369442714,-500.0,9.996e-05,2]
[348180568,1736369442724,-500.0,9.996e-05,2]
[348180569,1736369442734,-513.56589361,9.996e-05,2]
[348180570,1736369442743,-500.0,9.996e-05,2]
[348180571,1736369442753,-500.0,9.996e-05,2]
[348180572,1736369442763,-500.0,9.996e-05,2]
[348180573,1736369442772,-172.16,9.996e-05,2]
[348180574,1736369442782,-500.0,9.996e-05,2]
[348180575,1736369442792,-500.0,9.996e-05,2]
[348180576,1736369442802,-598.33,9.996e-05,2]
[348180578,1736369442811,-500.0,9.996e-05,2]
[348180580,1736369442822,-500.0,9.996e-05,2]
[348180581,1736369442832,-500.0,9.996e-05,2]
[348180582,1736369442842,-500.0,9.996e-05,2]
[348180583,1736369442851,-504.19744999,9.996e-05,2]
[348180584,1736369442861,-500.0,9.996e-05,2]
[348180585,1736369442871,-500.0,9.996e-05,2]
[348180586,1736369442881,-577.22,9.996e-05,2]
[348180587,1736369442891,-500.0,9.996e-05,2]
[348180590,1736369442901,-631.92535049,9.996e-05,2]
[348180592,1736369442911,-500.0,9.996e-05,2]
[348180595,1736369442922,-503.88968478,9.996e-05,2]
[348180599,1736369442932,-531.12042523,9.996e-05,2]
[348180602,1736369442943,-500.0,9.996e-05,2]
[348180603,1736369442952,-500.0,9.996e-05,2]
[348180604,1736369442962,-500.0,9.996e-05,2]
[348180605,1736369442972,-435.8950328,9.996e-05,2]
[348180606,1736369442982,-500.0,9.996e-05,2]
[348180607,1736369442992,-244.86939466,9.996e-05,2]
[348180608,1736369443002,-500.0,9.996e-05,2]
[348180609,1736369443011,-500.0,9.997e-05,2]
[348180610,1736369443022,-500.0,9.997e-05,2]
[348180611,1736369443032,-175.45,9.997e-05,2]
[348180612,1736369443042,-501.70264171,9.997e-05,2]
[348180613,1736369443052,-336.78,9.997e-05,2]
[348180614,1736369443063,-500.0,9.997e-05,2]
[348180615,1736369443072,-500.0,9.997e-05,2]
[348180616,1736369443081,-500.0,9.997e-05,2]
[348180617,1736369443093,-500.0,9.997e-05,2]
[348180618,1736369443103,-500.0,9.997e-05,2]
[348180619,1736369443112,-500.0,9.997e-05,2]
[348180620,1736369443121,-500.0,9.997e-05,2]
[348180621,1736369443131,-201.12237948,9.997e-05,2]
[348180622,1736369443140,-500.0,9.997e-05,2]
[348180623,1736369443150,-500.0,9.997e-05,2]
[348180624,1736369443163,-500.0,9.997e-05,2]
[348180625,1736369443173,-500.0,9.997e-05,2]
[348180626,1736369443183,-500.0,9.997e-05,2]
[348180627,1736369443192,-500.0,9.997e-05,2]
[348180628,1736369443202,-500.0,9.997e-05,2]
[348180629,1736369443213,-500.0,9.997e-05,2]
[348180630,1736369443222,-256.64,9.997e-05,2]
[348180631,1736369443232,-502.8661683,9.997e-05,2]
[348180632,1736369443243,-194.7,9.997e-05,2]
[348180633,1736369443253,-500.0,9.997e-05,2]
[348180635,1736369443262,-500.0,9.997e-05,2]
[348180637,1736369443271,-500.0,9.997e-05,2]
[348180639,1736369443281,-506.92734699,9.997e-05,2]
[348180640,1736369443291,-160.97852053,9.997e-05,2]
[348180641,1736369443300,-500.0,9.997e-05,2]
[348180642,1736369443309,-501.97277082,9.997e-05,2]
[348180643,1736369443319,-500.0,9.997e-05,2]
[348180644,1736369443328,-500.0,9.997e-05,2]
[348180645,1736369443337,-500.0,9.997e-05,2]
[348180646,1736369443347,-500.0,9.997e-05,2]
[348180647,1736369443356,-500.0,9.997e-05,2]
[348180648,1736369443366,-500.0,9.997e-05,2]
[348180649,1736369443375,-604.7,9.997e-05,2]
[348180650,1736369443385,-500.0,9.997e-05,2]
[348180651,1736369443394,-500.0,9.997e-05,2]
[348180652,1736369443404,-500.0,9.997e-05,2]
[348180653,1736369443415,-500.0,9.997e-05,2]
[348180654,1736369443424,-500.0,9.997e-05,2]
[348180655,1736369443434,-500.0,9.997e-05,2]
[348180656,1736369443443,-439.77917585,9.997e-05,2]
[348180657,1736369443453,-500.0,9.997e-05,2]
[348180658,1736369443463,-500.0,9.997e-05,2]
[348180659,1736369443472,-500.0,9.997e-05,2]
[348180660,1736369443481,-500.0,9.997e-05,2]
[348180661,1736369443491,-500.0,9.997e-05,2]
[348180662,1736369443500,-504.23125441,9.997e-05,2]
[348180663,1736369443509,-500.0,9.997e-05,2]
[348180664,1736369443519,-500.0,9.997e-05,2]
[348180665,1736369443528,-500.0,9.997e-05,2]
[348180666,1736369443538,-256.25124528,9.997e-05,2]
[348180667,1736369443547,-500.0,9.997e-05,2]
[348180668,1736369443556,-500.0,9.997e-05,2]
[348180669,1736369443566,-500.0,9.997e-05,2]
[348180670,1736369443575,-500.0,9.997e-05,2]
[348180671,1736369443584,-500.0,9.997e-05,2]
[348180672,1736369443594,-500.0,9.997e-05,2]
[348180673,1736369443603,-500.0,9.997e-05,2]
[348180674,1736369443612,-500.0,9.997e-05,7]
[348180675,1736369443622,-500.0,9.997e-05,2]
[348180676,1736369443631,-500.0,9.997e-05,2]
[348180677,1736369443640,-343.94175515,9.997e-05,2]
[348180678,1736369443650,-500.0,9.997e-05,2]
[348180679,1736369443660,-500.0,9.997e-05,2]
[348180680,1736369443670,-500.0,9.997e-05,2]
[348180681,1736369443679,-500.0,9.997e-05,2]
[348180682,1736369443689,-500.0,9.997e-05,2]
[348180683,1736369443698,-500.0,9.997e-05,2]
[348180684,1736369443707,-500.0,9.997e-05,2]
[348180685,1736369443716,-500.0,9.997e-05,2]
[348180686,1736369443726,-500.0,9.997e-05,2]
[348180687,1736369443735,-500.0,9.997e-05,2]
[348180688,1736369443744,-500.0,9.997e-05,2]
[348180689,1736369443753,-500.0,9.997e-05,2]
[348180691,1736369443763,-257.95926261,9.997e-05,2]
[348180693,1736369443772,-500.0,9.997e-05,2]
[348180694,1736369443782,-500.0,9.997e-05,2]
[348180695,1736369443791,-500.0,9.997e-05,2]
[348180696,1736369443800,-524.03,9.997e-05,2]
[348180697,1736369443809,-500.0,9.997e-05,2]
[348180698,1736369443818,-500.0,9.997e-05,2]
[348180699,1736369443827,-538.49520279,9.997e-05,2]
[348180700,1736369443836,-500.0,9.997e-05,2]
[348180701,1736369443845,-500.0,9.997e-05,2]
[348180702,1736369443854,-571.5,9.997e-05,2]
[348180703,1736369443863,-500.0,9.997e-05,2]
[348180704,1736369443872,-537.59,9.997e-05,2]
[348180705,1736369443881,-500.0,9.997e-05,2]
[348180706,1736369443893,-500.0,9.997e-05,2]
[348180707,1736369443902,-500.0,9.997e-05,2]
[348180708,1736369443911,-500.0,9.997e-05,2]
[348180709,1736369443924,-500.0,9.997e-05,2]
[348180710,1736369443934,-500.0,9.997e-05,2]
[348180711,1736369443943,-645.0072589,9.997e-05,2]
[348180712,1736369443952,-500.0,9.997e-05,2]
[348180713,1736369443961,-500.0,9.997e-05,2]
[348180714,1736369443971,-500.0,9.997e-05,2]
[348180715,1736369443980,-2513.96,9.997e-05,2]
[348180716,1736369443989,-500.0,9.997e-05,2]
[348180717,1736369443999,-500.0,9.997e-05,2]
[348180718,1736369444008,-500.0,9.997e-05,2]
[348180719,1736369444017,-500.0,9.997e-05,2]
[348180720,1736369444026,-500.0,9.997e-05,2]
[348180721,1736369444036,-510.17,9.997e-05,2]
[348180722,1736369444045,-500.0,9.997e-05,2]
[348180723,1736369444054,-500.0,9.997e-05,2]
[348180724,1736369444064,-500.0,9.997e-05,2]
[348180725,1736369444073,-500.0,9.997e-05,2]
[348180726,1736369444083,-500.0,9.997e-05,2]
[348180727,1736369444092,-500.0,9.997e-05,2]
[348180728,1736369444101,-1216.27,9.997e-05,2]
[348180729,1736369444111,-500.0,9.997e-05,2]